bitfinex/quotes_BTCUSD_20250508
["timestamp","ask_amount","ask_price","bid_price","bid_amount"]
[1746739592057,0.26004917,103500.0,103490.0,3.84006997]
[1746739592238,0.24990692,103500.0,103490.0,3.83906997]
[1746739592446,0.48078918,103500.0,103490.0,3.64581459]
[1746739592657,0.47680445,103500.0,103490.0,3.65181459]
[1746739592917,0.57851359,103500.0,103490.0,3.59579853]
[1746739593099,0.55285204,103500.0,103490.0,3.59579853]
[1746739593516,0.55185204,103500.0,103490.0,3.58979853]
[1746739593719,0.55085204,103500.0,103490.0,3.58379853]
[1746739593932,0.55085204,103500.0,103490.0,3.58879853]
[1746739594138,0.4651429,103500.0,103490.0,3.78205391]
[1746739594339,0.4651429,103500.0,103490.0,3.58879853]
[1746739594755,0.4651429,103500.0,103490.0,3.78205391]
[1746739595112,0.4651429,103500.0,103490.0,3.58879853]
[1746739595958,0.4651429,103500.0,103490.0,3.78205391]
[1746739596168,0.46526301,103500.0,103490.0,3.78205391]
[1746739596659,0.24606456,103500.0,103490.0,3.79171667]
[1746739596866,0.27504837,103500.0,103490.0,3.79171667]
[1746739597284,0.28471011,103500.0,103490.0,3.78205391]
[1746739597484,0.27504837,103500.0,103490.0,3.79171667]
[1746739597664,0.29058129,103500.0,103490.0,3.78205391]
[1746739597895,0.30024303,103500.0,103490.0,4.18556032]
[1746739598129,0.28471011,103500.0,103490.0,4.18556032]
[1746739598340,0.62308837,103500.0,103490.0,4.18556032]
[1746739598550,0.63275011,103500.0,103490.0,4.18556032]
[1746739599569,0.62308837,103500.0,103490.0,4.19522308]
[1746739599770,0.63275001,103500.0,103490.0,4.18556032]
[1746739599977,0.64241184,103500.0,103490.0,3.78205391]
[1746739600185,0.89892123,103500.0,103490.0,3.58879853]
[1746739600398,0.90892123,103500.0,103490.0,3.58879853]
[1746739601220,0.82326474,103500.0,103490.0,3.78205391]
[1746739601425,0.80666474,103500.0,103490.0,3.78205391]
[1746739601677,0.44706456,103500.0,103490.0,4.20488538]
[1746739601896,0.60352555,103500.0,103490.0,3.80137916]
[1746739602110,0.53032506,103500.0,103490.0,3.82070366]
[1746739602539,0.53032506,103500.0,103490.0,3.82070375]
[1746739602757,0.53032506,103500.0,103490.0,3.82836586]
[1746739603114,0.53132506,103500.0,103490.0,3.83436586]
[1746739603326,0.54098624,103500.0,103490.0,3.80537916]
[1746739603550,0.53998624,103500.0,103490.0,3.81870403]
[1746739603911,0.54098624,103500.0,103490.0,3.82170403]
[1746739604332,0.54198624,103500.0,103490.0,3.82670403]
[1746739604537,0.54098624,103500.0,103490.0,3.83136633]
[1746739604781,0.54098624,103500.0,103490.0,3.82170403]
[1746739604997,0.54098624,103500.0,103490.0,3.82570403]
[1746739605192,0.53998624,103500.0,103490.0,3.81970403]
[1746739605459,0.53998624,103500.0,103490.0,3.81404164]
[1746739605660,0.53998624,103500.0,103490.0,3.82370403]
[1746739605862,0.53998624,103500.0,103490.0,3.83336633]
[1746739606031,0.53998624,103500.0,103490.0,3.82370403]
[1746739606225,0.53998624,103500.0,103490.0,3.83336633]
[1746739606839,0.53974624,103500.0,103490.0,3.82370403]
[1746739607088,0.00012011,103520.0,103510.0,0.2221999]
[1746739607231,0.04014153,103520.0,103510.0,0.23186014]
[1746739607435,0.17745559,103530.0,103520.0,0.19319938]
[1746739607746,0.24392627,103530.0,103520.0,0.19319938]
[1746739608215,0.25358521,103530.0,103520.0,0.19319938]
[1746739608950,0.02897812,103520.0,103510.0,0.20221804]
[1746739609166,0.73239217,103520.0,103510.0,0.005]
[1746739609389,0.0289812,103510.0,103500.0,0.59323628]
[1746739609600,0.13112919,103510.0,103500.0,0.59323628]
[1746739609824,0.15886748,103510.0,103500.0,0.59323628]
[1746739610037,0.16564609,103510.0,103500.0,0.19323628]
[1746739610492,0.11858666,103510.0,103500.0,0.20289792]
[1746739610704,0.15309861,103510.0,103500.0,0.64026782]
[1746739610916,0.00677861,103510.0,103500.0,1.57358115]
[1746739611383,0.94470458,103560.0,103500.0,1.57358115]
[1746739611384,0.34804,103560.0,103550.0,0.00965707]
[1746739611593,0.49428,103560.0,103550.0,0.23665462]
[1746739612247,0.30580747,103560.0,103550.0,0.63665462]
[1746739612468,0.30580747,103560.0,103550.0,1.39556103]
[1746739612652,0.00917156,103560.0,103550.0,1.06579462]
[1746739612896,0.00917156,103560.0,103550.0,1.56996795]
[1746739613326,0.0001443,103560.0,103550.0,1.57396795]
[1746739613755,2.419e-05,103560.0,103550.0,1.57396795]
[1746739613964,2.419e-05,103560.0,103550.0,1.73953613]
[1746739614567,2.419e-05,103560.0,103550.0,1.73553613]
[1746739614784,0.00177882,103570.0,103560.0,0.32667318]
[1746739614998,0.00177882,103570.0,103560.0,1.88017935]
[1746739615225,0.0022,103590.0,103580.0,0.63453031]
[1746739615443,0.07906758,103630.0,103620.0,0.04349166]
[1746739615665,0.29699335,103650.0,103640.0,0.23646176]
[1746739615666,0.07906758,103650.0,103640.0,0.23646176]
[1746739615892,0.42698758,103670.0,103650.0,0.23644035]
[1746739615893,0.14748107,103660.0,103650.0,0.23644035]
[1746739616105,0.14748107,103660.0,103650.0,0.78020501]
[1746739616106,0.146,103660.0,103650.0,0.78020501]
[1746739616316,0.46037962,103660.0,103640.0,0.19297568]
[1746739616537,0.35823163,103660.0,103650.0,0.19295706]
[1746739616767,0.45889855,103660.0,103650.0,0.19295706]
[1746739617226,0.26587954,103660.0,103650.0,0.20260491]
[1746739617437,0.35040132,103670.0,103660.0,0.22187809]
[1746739617646,0.49624132,103670.0,103660.0,0.21223182]
[1746739617861,0.67397582,103670.0,103650.0,0.19295706]
[1746739618076,0.60224593,103670.0,103660.0,0.19293845]
[1746739618287,0.89583269,103670.0,103660.0,0.19293845]
[1746739618725,0.89883269,103670.0,103660.0,0.19293845]
[1746739618939,0.89683269,103670.0,103660.0,0.19293845]
[1746739619159,0.81876511,103670.0,103660.0,0.19293845]
[1746739619668,0.62684527,103670.0,103660.0,0.19293845]
[1746739619880,0.63649126,103670.0,103660.0,0.19593845]
[1746739620089,0.45206824,103670.0,103660.0,0.21523182]
[1746739620295,0.617039,103670.0,103660.0,0.21523182]
[1746739620511,0.46171339,103670.0,103660.0,0.22487809]
[1746739620766,0.50672656,103670.0,103660.0,0.22487809]
[1746739620983,0.35140132,103670.0,103660.0,1.1231836]
[1746739621418,0.00348132,103670.0,103660.0,1.25475052]
[1746739621634,0.0022,103690.0,103680.0,0.22183528]
[1746739621844,0.14756,103710.0,103700.0,0.24597627]
[1746739622058,0.00964255,103700.0,103690.0,0.19286725]
[1746739622321,0.31281623,103700.0,103690.0,0.4]
[1746739622536,0.01929132,103670.0,103660.0,0.004]
[1746739622766,0.27508423,103670.0,103660.0,0.19693845]
[1746739622996,0.46800407,103670.0,103660.0,0.19693845]
[1746739623452,0.45835855,103670.0,103660.0,0.004]
[1746739623894,0.47405855,103670.0,103660.0,0.002]
[1746739624107,0.47420284,103670.0,103660.0,0.002]
[1746739625175,0.47520284,103670.0,103660.0,0.002]
[1746739625385,0.45568029,103670.0,103660.0,0.002]
[1746739626041,0.33072284,103670.0,103660.0,0.002]
[1746739626254,0.25773636,103670.0,103660.0,0.22387809]
[1746739626464,0.15702963,103670.0,103660.0,0.23841894]
[1746739627125,0.15602953,103670.0,103660.0,0.23841894]
[1746739627720,0.15502953,103670.0,103660.0,0.29635894]
[1746739628175,0.15502953,103670.0,103660.0,0.29735894]
[1746739628381,0.14538429,103670.0,103660.0,0.29735894]
[1746739628604,0.47494344,103670.0,103660.0,0.003]
[1746739628817,1.38232703,103670.0,103660.0,0.003]
[1746739629030,1.18631676,103650.0,103640.0,0.002]
[1746739629238,1.65674572,103650.0,103640.0,0.002]
[1746739629448,1.75625749,103650.0,103640.0,0.002]
[1746739629653,0.81007542,103650.0,103640.0,0.002]
[1746739631162,0.83527542,103650.0,103640.0,0.002]
[1746739631597,0.01930026,103620.0,103610.0,0.16067782]
[1746739631791,0.13109833,103620.0,103610.0,0.16067773]
[1746739632236,0.14074869,103620.0,103610.0,0.16067773]
[1746739632464,0.53254027,103650.0,103640.0,0.21227258]
[1746739632668,0.62720607,103650.0,103640.0,0.23646166]
[1746739632874,0.5363309,103650.0,103640.0,0.23646166]
[1746739633310,0.54597847,103650.0,103640.0,0.23646166]
[1746739633525,0.53233061,103650.0,103640.0,0.23646166]
[1746739633752,0.01098912,103650.0,103640.0,1.8540979]
[1746739633968,0.01098912,103650.0,103640.0,1.31033324]
[1746739634186,0.01098912,103650.0,103640.0,1.20966632]
[1746739634401,0.01098912,103650.0,103640.0,0.66590166]
[1746739634632,0.00414427,103650.0,103640.0,1.20966632]
[1746739635070,0.00214427,103650.0,103640.0,0.66590166]
[1746739635307,0.00214427,103650.0,103640.0,1.21666632]
[1746739635564,0.00214427,103650.0,103640.0,0.007]
[1746739635565,0.29576825,103650.0,103640.0,0.007]
[1746739635773,0.31506329,103650.0,103640.0,0.002]
[1746739636056,0.33116329,103650.0,103640.0,0.005]
[1746739636258,0.38937934,103650.0,103640.0,0.005]
[1746739636470,0.43937934,103650.0,103640.0,0.005]
[1746739636681,2.05126264,103650.0,103640.0,0.005]
[1746739636897,2.09192956,103650.0,103640.0,0.005]
[1746739637111,2.14192956,103650.0,103640.0,0.003]
[1746739637345,0.19302889,103620.0,103600.0,0.19505019]
[1746739637556,0.51075122,103650.0,103600.0,0.19505019]
[1746739637557,0.4561331,103650.0,103640.0,0.20262446]
[1746739637769,0.27947053,103650.0,103640.0,0.2315694]
[1746739637984,0.01098912,103650.0,103640.0,0.24611025]
[1746739638201,0.16746912,103650.0,103640.0,0.24611025]
[1746739638430,0.1867637,103650.0,103640.0,0.24611025]
[1746739638634,0.17711622,103650.0,103640.0,0.24611025]
[1746739638850,0.18441117,103650.0,103640.0,0.24611025]
[1746739639267,0.1747636,103650.0,103640.0,0.24611025]
[1746739639846,0.15546912,103650.0,103640.0,0.24611025]
[1746739640048,0.17676351,103650.0,103640.0,0.24611025]
[1746739640252,0.01298912,103650.0,103640.0,0.30405025]
[1746739640480,0.01298912,103650.0,103640.0,0.89943355]
[1746739640684,0.01298912,103650.0,103640.0,1.25523355]
[1746739641261,0.00414427,103650.0,103640.0,1.65523355]
[1746739641685,0.00414427,103650.0,103640.0,1.75590047]
[1746739641891,0.00414427,103650.0,103640.0,1.96142047]
[1746739642100,0.00414427,103650.0,103640.0,1.91154547]
[1746739642306,0.00414427,103650.0,103640.0,1.87554547]
[1746739642935,0.00414427,103650.0,103640.0,2.17554547]
[1746739643141,0.01084485,103670.0,103660.0,0.90464224]
[1746739643345,0.01084485,103670.0,103660.0,1.00530916]
[1746739643971,0.01084485,103670.0,103660.0,0.64191894]
[1746739644170,0.01084485,103670.0,103660.0,1.21524851]
[1746739645123,0.01084485,103670.0,103660.0,1.21624851]
[1746739645323,0.01084485,103670.0,103660.0,1.24854851]
[1746739645570,0.01084485,103670.0,103660.0,1.40715543]
[1746739646747,0.002,103670.0,103660.0,1.40715543]
[1746739647567,0.32162802,103690.0,103680.0,0.23637613]
[1746739647780,0.32177213,103690.0,103680.0,0.23637613]
[1746739647981,0.34105899,103690.0,103680.0,0.23637613]
[1746739648190,0.40848309,103690.0,103680.0,0.23637613]
[1746739648479,0.41812666,103690.0,103680.0,0.23637613]
[1746739648669,0.42112666,103690.0,103680.0,0.23637613]
[1746739648839,0.33441551,103690.0,103680.0,0.23637613]
[1746739649066,0.41148309,103690.0,103680.0,0.23637613]
[1746739649226,0.71767621,103690.0,103680.0,0.20254619]
[1746739649437,0.44772582,103690.0,103680.0,0.22183528]
[1746739649636,0.45736957,103690.0,103680.0,0.22183528]
[1746739649856,0.45736948,103690.0,103680.0,0.22183528]
[1746739650123,0.44772582,103690.0,103680.0,0.22183528]
[1746739650518,0.42721272,103690.0,103680.0,0.22183528]
[1746739650869,0.43685638,103690.0,103680.0,0.22183528]
[1746739651282,0.42721272,103690.0,103680.0,0.62183528]
[1746739651766,0.4087243,103690.0,103680.0,0.62183528]
[1746739652529,0.59196382,103690.0,103680.0,0.59290123]
[1746739652731,0.60160814,103690.0,103680.0,0.59290123]
[1746739652929,0.60160814,103690.0,103680.0,0.19290123]
[1746739653302,0.60160814,103690.0,103680.0,0.21219125]
[1746739653519,0.38943753,103690.0,103680.0,0.24112521]
[1746739653883,0.39908091,103690.0,103680.0,0.24112521]
[1746739654080,0.38943753,103690.0,103680.0,0.24112521]
[1746739654285,0.39908091,103690.0,103680.0,0.64112521]
[1746739654490,0.41836833,103690.0,103680.0,0.23148053]
[1746739654688,0.41836823,103690.0,103680.0,0.24112512]
[1746739654891,0.41836823,103690.0,103680.0,0.24112521]
[1746739655099,0.42801208,103690.0,103680.0,0.24112521]
[1746739655499,0.40872448,103690.0,103680.0,0.24112456]
[1746739655730,0.42801199,103690.0,103680.0,0.23148015]
[1746739656261,0.42801199,103690.0,103680.0,0.24112456]
[1746739656649,0.42801199,103690.0,103680.0,0.22183565]
[1746739656767,0.42801199,103690.0,103680.0,0.24112474]
[1746739657452,0.15502952,103690.0,103680.0,0.22183528]
[1746739657774,0.11645441,103690.0,103680.0,0.22183528]
[1746739657975,0.12609789,103690.0,103680.0,0.22183528]
[1746739658194,0.24993103,103690.0,103680.0,0.24112419]
[1746739658395,0.26921789,103690.0,103680.0,0.24112419]
[1746739658864,0.26921789,103690.0,103660.0,0.002]
[1746739658865,0.19291984,103670.0,103660.0,0.002]
[1746739659062,0.13645787,103670.0,103660.0,0.19493845]
[1746739659272,0.13645787,103670.0,103660.0,0.01164692]
[1746739659273,0.33216941,103670.0,103660.0,0.01164692]
[1746739659532,0.12960367,103670.0,103660.0,0.2142321]
[1746739659774,0.32252351,103670.0,103660.0,0.2142321]
[1746739659987,0.32352351,103670.0,103660.0,0.22387874]
[1746739660184,0.30423256,103670.0,103660.0,0.22387874]
[1746739660698,0.33115087,103670.0,103660.0,0.22387874]
[1746739661240,0.33115087,103670.0,103660.0,0.25771231]
[1746739661241,0.001,103670.0,103660.0,0.25771231]
[1746739661447,0.001,103670.0,103660.0,1.14041134]
[1746739662589,0.001,103670.0,103660.0,1.54041134]
[1746739663390,0.001,103670.0,103660.0,1.58256716]
[1746739663892,0.18293888,103680.0,103670.0,0.23639753]
[1746739664712,0.18293888,103680.0,103670.0,0.63639753]
[1746739665062,0.46638229,103680.0,103670.0,0.61221172]
[1746739665986,0.46838229,103680.0,103670.0,0.61221172]
[1746739666233,0.42960603,103680.0,103670.0,0.60256583]
[1746739666634,0.41996153,103680.0,103670.0,0.60256583]
[1746739667271,0.41996153,103680.0,103670.0,0.61221172]
[1746739667717,0.32893967,103680.0,103670.0,0.63150304]
[1746739667896,0.32893967,103680.0,103670.0,0.23150304]
[1746739668623,0.32893967,103680.0,103670.0,0.64114875]
[1746739669257,0.32893967,103680.0,103670.0,0.63150323]
[1746739669461,0.32893967,103680.0,103670.0,0.64114884]
[1746739669865,0.31929471,103680.0,103660.0,0.25282845]
[1746739670084,0.32252379,103670.0,103660.0,0.21423182]
[1746739670265,0.32252379,103670.0,103660.0,0.22387827]
[1746739670503,0.32252379,103670.0,103660.0,0.62387827]
[1746739670721,0.32252379,103670.0,103660.0,0.61423182]
[1746739670943,0.32252379,103670.0,103660.0,0.61423191]
[1746739671198,0.32252379,103670.0,103660.0,0.62387846]
[1746739671415,0.32252379,103670.0,103660.0,0.22387846]
[1746739671852,0.33423256,103670.0,103660.0,0.002]
[1746739672082,0.23154678,103650.0,103640.0,0.20262391]
[1746739672307,0.3322137,103650.0,103640.0,0.60262391]
[1746739672546,0.13925664,103650.0,103640.0,0.62192063]
[1746739672776,0.32256669,103650.0,103640.0,0.61227222]
[1746739673018,0.12960963,103650.0,103640.0,0.61227222]
[1746739673480,0.12960963,103650.0,103640.0,0.62640176]
[1746739673771,0.12960963,103650.0,103640.0,0.61675354]
[1746739674225,0.12960963,103650.0,103640.0,0.62440176]
[1746739674490,0.12960954,103650.0,103640.0,0.62640176]
[1746739674981,0.32256716,103650.0,103640.0,0.597457]
[1746739675216,0.32256716,103650.0,103640.0,0.40448132]
[1746739675471,0.32791959,103650.0,103640.0,0.00448132]
[1746739677594,0.32791959,103650.0,103640.0,0.00248132]
[1746739677797,0.32791959,103650.0,103640.0,0.00048132]
[1746739678001,0.32991959,103650.0,103640.0,0.00048132]
[1746739678825,0.32991959,103650.0,103640.0,0.00148132]
[1746739679262,0.88781862,103650.0,103640.0,0.00048132]
[1746739679649,1.22052301,103650.0,103620.0,0.00148132]
[1746739679853,0.22889306,103630.0,103620.0,0.00148132]
[1746739680075,0.88855901,103630.0,103620.0,0.00148132]
[1746739681577,0.89055901,103630.0,103620.0,0.00148132]
[1746739682389,0.89255901,103630.0,103620.0,0.00148132]
[1746739683130,0.99322593,103630.0,103620.0,0.00148132]
[1746739683980,1.02018234,103630.0,103620.0,0.00148132]
[1746739684848,0.99322593,103630.0,103620.0,0.00148132]
[1746739685073,1.00322593,103630.0,103620.0,0.00148132]
[1746739685727,1.86419224,103630.0,103620.0,0.00148132]
[1746739687249,1.83726593,103630.0,103620.0,0.00148132]
[1746739687461,2.27726593,103630.0,103620.0,0.00148132]
[1746739687686,2.25417132,103630.0,103620.0,0.00148132]
[1746739687894,2.29520689,103630.0,103620.0,0.00148132]
[1746739688098,2.32211206,103630.0,103620.0,0.00148132]
[1746739688727,2.66967206,103630.0,103620.0,0.00148132]
[1746739689211,2.56900514,103630.0,103620.0,0.00148132]
[1746739689417,1.54912094,103630.0,103620.0,0.00148132]
[1746739689637,1.54712094,103630.0,103620.0,0.00148132]
[1746739689846,1.52917998,103630.0,103620.0,0.00148132]
[1746739690060,0.00965269,103590.0,103580.0,0.63779593]
[1746739690279,0.00965241,103600.0,103570.0,1.50879161]
[1746739690280,0.11611599,103580.0,103570.0,1.50879161]
[1746739690484,0.11611599,103580.0,103570.0,1.41911414]
[1746739690712,0.13542351,103580.0,103570.0,0.50557025]
[1746739690942,0.13022342,103580.0,103570.0,0.44600479]
[1746739691159,0.13170449,103580.0,103570.0,0.61238116]
[1746739691369,0.33991896,103580.0,103570.0,0.6028705]
[1746739691613,0.42127892,103580.0,103570.0,0.00014427]
[1746739691833,0.42227892,103580.0,103570.0,0.00514427]
[1746739692039,0.43847892,103580.0,103570.0,0.00514427]
[1746739692305,0.44564813,103580.0,103570.0,0.00514427]
[1746739692980,0.44664813,103580.0,103570.0,0.00514427]
[1746739693192,1.01484716,103580.0,103570.0,0.00514427]
[1746739693401,1.11451408,103580.0,103570.0,0.00014427]
[1746739693611,1.10451408,103580.0,103570.0,0.00014427]
[1746739693833,1.79731408,103580.0,103570.0,0.00414427]
[1746739694040,1.79731408,103580.0,103570.0,0.00014427]
[1746739694250,1.80831408,103580.0,103570.0,0.00014427]
[1746739694459,1.28288011,103580.0,103570.0,0.00014427]
[1746739694921,2.26557914,103580.0,103570.0,0.00014427]
[1746739695347,0.2317704,103550.0,103540.0,0.18830366]
[1746739695570,0.47295732,103550.0,103540.0,0.18844796]
[1746739695804,0.45364438,103550.0,103540.0,0.18844796]
[1746739696033,0.45364438,103550.0,103540.0,0.0001443]
[1746739696480,0.46964438,103550.0,103540.0,0.0091443]
[1746739697114,0.08759222,103540.0,103530.0,0.19318]
[1746739697347,0.01931704,103530.0,103520.0,0.59515735]
[1746739697573,0.11998396,103530.0,103520.0,0.62413658]
[1746739697795,0.13112387,103530.0,103520.0,0.19515735]
[1746739698036,0.33248255,103530.0,103520.0,0.19515735]
[1746739698262,0.31316551,103530.0,103520.0,0.19515735]
[1746739698739,0.30450667,103530.0,103520.0,0.009]
[1746739699198,0.30550667,103530.0,103520.0,0.019]
[1746739699420,0.32180667,103530.0,103520.0,0.019]
[1746739699642,0.32080667,103530.0,103520.0,0.009]
[1746739700090,0.33703606,103530.0,103520.0,0.002]
[1746739700519,0.35293606,103530.0,103520.0,0.005]
[1746739700723,0.89563509,103530.0,103520.0,0.005]
[1746739701174,0.90563509,103530.0,103520.0,0.005]
[1746739701603,0.90563509,103530.0,103520.0,0.006]
[1746739702764,0.90563509,103530.0,103520.0,0.005]
[1746739702983,1.24563509,103530.0,103520.0,0.005]
[1746739703256,1.91322299,103530.0,103520.0,0.002]
[1746739703525,1.91322299,103530.0,103520.0,0.003]
[1746739703752,1.21042299,103530.0,103520.0,0.00070209]
[1746739703980,0.64363918,103510.0,103500.0,0.002]
[1746739704199,1.67551205,103510.0,103500.0,0.002]
[1746739704410,1.69304427,103510.0,103500.0,0.002]
[1746739704626,1.59237735,103510.0,103500.0,0.002]
[1746739704835,1.04967832,103510.0,103500.0,0.002]
[1746739705060,1.59237735,103510.0,103500.0,0.002]
[1746739705277,1.59237735,103510.0,103500.0,0.00247962]
[1746739705723,1.60437735,103510.0,103500.0,0.00247962]
[1746739706157,1.58684513,103510.0,103500.0,0.00247962]
[1746739706392,1.68751205,103510.0,103500.0,0.00247962]
[1746739706600,1.58684513,103510.0,103500.0,0.00247962]
[1746739707919,1.61158177,103510.0,103500.0,0.00247962]
[1746739708829,1.06888274,103510.0,103500.0,0.00247962]
[1746739709047,1.58588177,103510.0,103500.0,0.00247962]
[1746739712298,1.60138177,103510.0,103500.0,0.00247962]
[1746739712507,1.05868274,103510.0,103500.0,0.00247962]
[1746739712718,1.60138177,103510.0,103500.0,0.00247962]
[1746739713326,0.20995062,103500.0,103490.0,3.58331891]
[1746739713525,0.31061754,103500.0,103490.0,3.58331891]
[1746739713741,0.38551582,103500.0,103490.0,3.58331891]
[1746739714376,0.36551582,103500.0,103490.0,3.58531891]
[1746739714577,0.37517746,103500.0,103490.0,3.49772685]
[1746739714792,0.39067746,103500.0,103490.0,3.49772685]
[1746739714995,0.39067746,103500.0,103490.0,3.49872685]
[1746739715209,0.85847821,103500.0,103490.0,3.49872685]
[1746739715878,0.31577918,103500.0,103490.0,3.49872685]
[1746739716084,0.71949115,103500.0,103490.0,3.49872685]
[1746739716514,0.73499115,103500.0,103490.0,3.49872685]
[1746739717195,0.71949115,103500.0,103490.0,3.49872685]
[1746739717716,0.79937751,103500.0,103490.0,3.49872685]
[1746739720678,1.20308948,103500.0,103490.0,3.49872685]
[1746739721737,1.21848948,103500.0,103490.0,3.49872685]
[1746739722610,1.22848948,103500.0,103490.0,3.49872685]
[1746739723249,1.17548324,103500.0,103490.0,3.49872685]
[1746739723459,1.17548324,103500.0,103490.0,3.48067723]
[1746739723684,1.51548324,103500.0,103490.0,3.46885162]
[1746739723893,1.51548324,103500.0,103490.0,3.4470676]
[1746739724094,1.71615016,103500.0,103490.0,3.43835399]
[1746739724324,1.60615016,103500.0,103490.0,3.41283557]
[1746739724549,1.62706781,103500.0,103490.0,3.41183557]
[1746739724755,1.62706781,103500.0,103490.0,2.60475814]
[1746739725153,1.5968449,103500.0,103490.0,2.58848365]
[1746739725378,1.5968449,103500.0,103490.0,2.57603564]
[1746739725620,1.5968449,103500.0,103490.0,2.56248702]
[1746739726028,1.61802082,103500.0,103490.0,2.55765077]
[1746739726237,1.5968449,103500.0,103490.0,2.55765077]
[1746739726442,1.5968449,103500.0,103490.0,2.55281452]
[1746739726617,1.5998449,103500.0,103490.0,2.55281452]
[1746739726789,1.62287089,103500.0,103490.0,2.54797827]
[1746739726992,1.62987089,103500.0,103490.0,2.54897827]
[1746739727321,1.62987089,103500.0,103490.0,2.54414202]
[1746739727459,1.62987089,103500.0,103490.0,2.53930577]
[1746739727699,1.62987089,103500.0,103490.0,1.77219478]
[1746739727837,1.72308575,103500.0,103490.0,1.76735853]
[1746739728040,1.72308575,103500.0,103490.0,1.7393505]
[1746739728269,1.72308575,103500.0,103490.0,1.73451425]
[1746739728645,0.56338948,103490.0,103480.0,0.002]
[1746739728848,1.77002738,103490.0,103480.0,0.002]
[1746739729050,1.77002738,103490.0,103460.0,0.002]
[1746739729051,0.63562136,103470.0,103460.0,0.002]
[1746739729232,1.54371222,103470.0,103460.0,0.002]
[1746739729607,1.14000025,103470.0,103460.0,0.002]
[1746739730111,1.19000025,103470.0,103460.0,0.002]
[1746739730265,1.29066717,103470.0,103460.0,0.002]
[1746739730485,0.88698735,103470.0,103460.0,0.002]
[1746739730854,1.69441129,103470.0,103460.0,0.002]
[1746739731042,0.88998735,103470.0,103460.0,0.002]
[1746739731284,1.69741129,103470.0,103460.0,0.002]
[1746739731463,1.70041129,103470.0,103460.0,0.003]
[1746739732302,1.66495214,103470.0,103460.0,0.003]
[1746739732515,1.68765862,103470.0,103460.0,0.003]
[1746739733243,0.69416245,103450.0,103440.0,0.002]
[1746739733448,1.77075526,103450.0,103440.0,0.002]
[1746739733668,1.74184818,103450.0,103440.0,0.002]
[1746739734302,1.69184818,103450.0,103440.0,0.002]
[1746739734518,1.69184818,103450.0,103440.0,0.003]
[1746739734519,1.28813621,103450.0,103440.0,0.003]
[1746739734722,1.69484818,103450.0,103440.0,0.003]
[1746739734999,2.07746723,103450.0,103440.0,0.002]
[1746739735215,2.07746723,103450.0,103380.0,0.44836163]
[1746739735216,0.21278559,103390.0,103380.0,0.44836163]
[1746739735420,0.44126124,103390.0,103380.0,0.22840605]
[1746739735618,0.44126124,103390.0,103380.0,1.04550294]
[1746739735939,0.44126124,103390.0,103380.0,1.0551758]
[1746739736185,0.44126124,103390.0,103380.0,0.83272797]
[1746739736386,0.44126124,103390.0,103380.0,0.0165]
[1746739736602,0.44174028,103390.0,103380.0,0.83970909]
[1746739736795,0.44374028,103390.0,103380.0,0.83970909]
[1746739737007,0.44374028,103390.0,103380.0,0.0165]
[1746739737244,0.20313387,103380.0,103370.0,0.0155]
[1746739737576,0.30380079,103380.0,103370.0,0.0155]
[1746739737767,0.20315362,103370.0,103360.0,0.40571197]
[1746739737976,0.30382054,103370.0,103360.0,0.40571197]
[1746739738185,0.30382054,103370.0,103360.0,0.002]
[1746739738959,0.30382054,103370.0,103360.0,0.01]
[1746739738960,0.30482054,103370.0,103360.0,0.01]
[1746739739175,0.38956869,103370.0,103360.0,0.01]
[1746739739324,0.38856869,103370.0,103360.0,0.002]
[1746739739934,0.39056869,103370.0,103360.0,0.002]
[1746739740440,0.30382054,103370.0,103360.0,0.002]
[1746739740665,0.44190054,103370.0,103360.0,0.40571197]
[1746739740883,0.44290054,103370.0,103360.0,0.009]
[1746739741072,0.44190054,103370.0,103360.0,0.40571197]
[1746739741301,0.44290054,103370.0,103360.0,0.41171197]
[1746739741687,0.44290054,103370.0,103360.0,0.008]
[1746739742255,0.49112651,103370.0,103360.0,0.008]
[1746739742472,0.44290054,103370.0,103360.0,0.008]
[1746739744126,0.44281553,103370.0,103360.0,0.008]
[1746739745643,0.30573553,103370.0,103360.0,0.41171197]
[1746739745851,0.00047904,103390.0,103380.0,0.60911987]
[1746739746072,0.002,103410.0,103400.0,0.60907684]
[1746739746306,0.37940389,103430.0,103420.0,0.19338619]
[1746739746524,0.48007128,103430.0,103420.0,0.19338619]
[1746739746752,0.48007128,103430.0,103420.0,1.0127458]
[1746739746753,0.002,103430.0,103420.0,1.0127458]
[1746739746973,0.14626566,103450.0,103440.0,0.22722405]
[1746739747192,0.25659843,103450.0,103440.0,1.07641477]
[1746739747412,0.27593068,103450.0,103440.0,1.07641496]
[1746739747626,0.29383089,103450.0,103440.0,0.65351305]
[1746739747860,0.29383089,103450.0,103440.0,0.66318011]
[1746739748108,0.13789807,103450.0,103440.0,1.07655886]
[1746739748349,0.00966585,103450.0,103440.0,1.07655886]
[1746739748563,0.01066566,103450.0,103440.0,1.48075886]
[1746739748775,0.01066566,103450.0,103440.0,1.49679282]
[1746739748984,0.001,103450.0,103440.0,1.49679282]
[1746739749234,0.002,103450.0,103440.0,1.50079282]
[1746739749458,0.00895183,103460.0,103450.0,0.2543285]
[1746739749669,0.00895183,103460.0,103450.0,1.13915391]
[1746739750090,0.33263894,103460.0,103450.0,0.4162]
[1746739750295,0.01933207,103450.0,103440.0,0.27909984]
[1746739750586,0.01933207,103450.0,103440.0,0.82192525]
[1746739750587,0.04933045,103450.0,103440.0,0.82192525]
[1746739750752,0.00943544,103450.0,103440.0,1.22192525]
[1746739750988,0.02876779,103450.0,103440.0,1.21992525]
[1746739751110,0.01933067,103460.0,103450.0,0.21753737]
[1746739751337,0.03966059,103460.0,103450.0,0.80972909]
[1746739751553,0.23125902,103460.0,103450.0,0.79406278]
[1746739751780,0.21266245,103450.0,103440.0,0.41617805]
[1746739751983,0.44082334,103450.0,103440.0,0.00814409]
[1746739752252,0.45873994,103450.0,103440.0,0.00014409]
[1746739752669,0.46769177,103450.0,103440.0,0.00014409]
[1746739753022,0.45077517,103450.0,103440.0,0.00014409]
[1746739753837,0.46770355,103450.0,103440.0,0.00014409]
[1746739754019,0.46770355,103450.0,103440.0,0.00214409]
[1746739755798,0.47442958,103450.0,103440.0,0.00214409]
[1746739759719,0.50592958,103450.0,103440.0,0.00214409]
[1746739759925,1.47782257,103450.0,103440.0,0.00214409]
[1746739760124,2.05411611,103450.0,103440.0,0.00214409]
[1746739760336,2.05411611,103450.0,103400.0,0.002]
[1746739760337,0.58284471,103410.0,103400.0,0.002]
[1746739760554,1.27880306,103410.0,103400.0,0.002]
[1746739760770,1.21017082,103410.0,103400.0,0.002]
[1746739760984,1.2280992,103410.0,103400.0,0.002]
[1746739761204,1.78292461,103410.0,103400.0,0.002]
[1746739761406,1.78965064,103410.0,103400.0,0.002]
[1746739761619,1.7927943,103410.0,103400.0,0.002]
[1746739761818,1.89346122,103410.0,103400.0,0.002]